bitfinex/quotes_SOLUSD_20250917
["timestamp","ask_amount","ask_price","bid_price","bid_amount"]
[1758132159867,19.99999751,237.02,236.76,0.03]
[1758132160065,25.32500421,236.92,236.76,0.03]
[1758132160283,5.72051262,236.93,236.76,0.03]
[1758132160284,0.52762652,236.91,236.76,0.03]
[1758132160584,5.72051262,236.77,236.76,0.03]
[1758132160787,5.72051262,236.77,236.71,0.03]
[1758132160960,5.72051262,236.72,236.64,0.03]
[1758132161161,0.52807232,236.71,236.41,5.72051262]
[1758132161382,0.52778246,236.84,236.31,20.0]
[1758132161571,5.72051262,236.64,236.54,5.72051262]
[1758132161757,0.52778246,236.84,236.56,5.72051262]
[1758132161964,5.72051262,236.66,236.56,5.72051262]
[1758132162184,5.72051262,236.71,236.59,5.72051262]
[1758132162372,5.72051262,236.71,236.46,20.0]
[1758132162569,0.5277379,236.86,236.68,5.72051262]
[1758132162771,20.08434886,237.05,236.59,20.0]
[1758132162973,5.72051262,236.83,236.59,20.0]
[1758132163171,5.72051262,236.79,236.55,20.0]
[1758132163478,19.72778487,237.01,236.75,5.72051262]
[1758132163676,19.72778487,237.01,236.79,5.72051262]
[1758132163892,5.72051262,236.9,236.79,5.72051262]
[1758132164269,5.72051262,236.89,236.79,5.72051262]
[1758132164478,5.72051262,236.83,236.63,20.0]
[1758132164690,23.94712112,237.01,236.71,5.72051262]
[1758132164883,23.94712112,237.01,236.77,5.72051262]
[1758132165086,23.94712112,237.01,236.78,0.42233296]
[1758132165087,18.85778487,237.01,236.78,0.42233296]
[1758132165289,0.52702588,237.18,236.94,5.72051262]
[1758132165667,0.52702588,237.18,236.96,5.72051262]
[1758132165870,5.72051262,237.05,236.97,0.42199434]
[1758132166188,0.52702588,237.18,236.94,5.72051262]
[1758132166189,4.21667524,237.16,236.94,5.72051262]
[1758132166386,0.52709255,237.15,236.89,5.72051262]
[1758132166578,0.52709255,237.15,236.91,5.72051262]
[1758132166776,0.52698145,237.2,236.92,0.4220834]
[1758132166978,18.35491685,237.21,237.04,5.72051262]
[1758132167172,0.52698145,237.2,237.0,5.72051262]
[1758132167366,18.35491685,237.21,237.01,0.42192312]
[1758132167567,0.52653748,237.4,237.2,5.72051262]
[1758132167763,4.21277458,237.38,237.21,0.42156738]
[1758132167968,4.21277458,237.38,236.66,21.03671495]
[1758132167969,5.72051262,237.23,237.22,0.42154961]
[1758132168182,11.44102524,237.23,236.8,20.0]
[1758132168392,0.52693702,237.22,237.0,5.72051262]
[1758132168582,6.24744964,237.22,237.01,0.42192312]
[1758132168979,0.52693702,237.22,236.85,20.42220814]
[1758132169200,0.52693702,237.22,236.98,5.72051262]
[1758132169381,5.72051262,237.08,236.98,5.72051262]
[1758132169788,5.72051262,237.01,236.85,0.42220814]
[1758132169976,5.72051262,236.95,236.77,30.4]
[1758132170177,4.21825442,237.07,236.77,30.4]
[1758132170379,0.52718147,237.11,236.89,5.72051262]
[1758132170598,5.72051262,237.01,236.78,0.42233296]
[1758132170795,0.52695923,237.21,236.79,20.0]
[1758132171096,5.72051262,237.03,237.01,0.12670088]
[1758132171269,0.52695923,237.21,237.01,0.12670088]
[1758132171470,5.72051262,237.06,237.01,0.12670088]
[1758132171694,4.2158516,237.2,237.01,0.12670088]
[1758132172003,5.72051262,237.02,237.01,0.12670088]
[1758132172211,5.72051262,237.02,236.77,30.4]
[1758132172386,14.75672485,237.18,236.87,5.72051262]
[1758132172568,0.5270481,237.17,236.88,5.72051262]
[1758132172772,0.5270481,237.17,236.9,5.72051262]
[1758132173008,0.5270481,237.17,236.91,0.42210121]
[1758132173176,0.5270481,237.17,236.92,0.4220834]
[1758132173501,21.17580435,237.24,237.05,5.72051262]
[1758132173502,0.5869148,237.23,237.05,5.72051262]
[1758132173667,5.72051262,237.2,237.06,0.42183413]
[1758132173870,0.06,237.23,237.07,0.42181634]
[1758132174071,5.72051262,237.13,236.89,20.0]
[1758132174282,5.72051262,237.06,236.86,0.03]
[1758132174499,5.72051262,237.09,236.87,0.42217249]
[1758132174672,0.52695923,237.21,236.96,5.72051262]
[1758132174876,0.52695923,237.21,236.86,0.03]
[1758132175184,5.72051262,237.08,236.86,0.03]
[1758132175380,5.72051262,237.08,236.98,5.72051262]
[1758132175617,0.52693702,237.22,237.04,5.72051262]
[1758132175795,0.06,237.23,237.05,0.42185192]
[1758132176380,0.06,237.23,237.17,5.72051262]
[1758132176695,0.1,237.24,237.21,5.72051262]
[1758132176874,0.03,237.24,237.23,5.72051262]
[1758132178181,0.03,237.24,237.2,5.72051262]
[1758132178378,0.03,237.24,237.02,20.0]
[1758132178610,0.03,237.24,237.03,0.42188752]
[1758132178794,0.03,237.24,237.04,20.0]
[1758132179113,5.72051262,237.22,237.11,5.72051262]
[1758132179294,5.72051262,237.23,237.13,5.72051262]
[1758132179476,5.72051262,237.23,236.95,20.0]
[1758132179677,0.03,237.24,237.1,5.72051262]
[1758132179901,0.03,237.24,237.16,5.72051262]
[1758132180282,0.55689259,237.24,236.86,0.03]
[1758132180487,5.72051262,237.1,237.01,5.72051262]
[1758132180702,5.72051262,237.09,236.86,0.03]
[1758132180903,0.55689259,237.24,236.98,5.72051262]
[1758132181091,1.60996334,237.1,236.86,0.03]
[1758132181301,0.55689259,237.24,236.86,0.03]
[1758132181302,5.72051262,237.05,236.87,0.42217249]
[1758132181522,5.72051262,237.02,236.87,0.42217249]
[1758132181679,5.72051262,236.94,236.86,0.03]
[1758132181879,5.72051262,237.22,236.86,0.03]
[1758132181880,0.5270481,237.17,236.87,5.72051262]
[1758132182110,21.3028353,237.28,236.93,5.72051262]
[1758132182111,14.7554806,237.2,236.93,5.72051262]
[1758132182310,0.52700366,237.19,236.97,5.72051262]
[1758132182614,0.52700366,237.19,236.98,0.42197653]
[1758132183120,0.52700366,237.19,236.86,0.45219032]
[1758132183284,5.72051262,236.87,236.47,21.72490313]
[1758132183615,0.5277379,236.86,236.66,5.72051262]
[1758132183803,0.52733715,237.04,236.73,5.72051262]
[1758132184108,0.52733715,237.04,236.53,20.10334617]
[1758132184109,21.3028353,237.28,237.06,7.28236717]
[1758132184412,0.06,237.44,237.23,5.72051262]
[1758132184413,21.7972754,237.43,237.23,5.72051262]
[1758132184621,21.7972754,237.43,237.24,0.42151407]
[1758132185185,21.7972754,237.43,237.25,0.42149631]
[1758132185409,21.8972754,237.43,237.25,0.42149631]
[1758132186312,5.72051191,237.27,237.25,0.42149631]
[1758132186482,5.72051191,237.27,237.26,6.14199116]
[1758132186682,5.72051191,237.27,237.26,0.42147854]
[1758132186879,5.82051262,237.43,237.26,5.72051262]
[1758132186880,0.1,237.43,237.26,5.72051262]
[1758132187085,0.1,237.43,237.27,0.42146078]
[1758132187294,0.1,237.43,237.31,5.72051262]
[1758132187498,0.1,237.43,237.12,20.0]
[1758132187499,0.1,237.43,237.32,0.42137198]
[1758132187714,0.1,237.43,237.33,0.42135423]
[1758132188005,0.06,237.47,237.33,0.42135423]
[1758132188311,5.72051262,237.41,237.34,0.42133647]
[1758132188515,5.72051262,237.46,237.35,0.42131872]
[1758132188706,0.06,237.47,237.36,0.42130097]
[1758132189020,5.72051262,237.43,237.36,0.42130097]
[1758132189316,0.06,237.47,237.37,0.42128322]
[1758132189518,0.06,237.47,237.38,0.42126548]
[1758132189722,0.06,237.47,237.39,0.42124773]
[1758132190226,0.06,237.47,237.4,0.42122999]
[1758132190921,0.06,237.49,237.4,0.42122999]
[1758132191084,0.06,237.49,237.34,30.36]
[1758132191288,0.06,237.49,237.48,5.72051262]
[1758132191609,0.06,237.49,237.41,0.42121224]
[1758132191999,0.06,237.49,237.48,0.5]
[1758132192509,0.06,237.49,237.41,0.42121224]
[1758132192510,5.78051262,237.49,237.41,0.42121224]
[1758132192686,0.06,237.46,237.42,0.4211945]
[1758132192887,5.78051262,237.46,237.35,0.42131872]
[1758132193131,0.06,237.46,237.35,0.42131872]
[1758132193315,0.06,237.46,237.35,6.14183134]
[1758132193493,0.06,237.46,237.35,0.42131872]
[1758132194809,0.06,237.46,237.36,5.72051262]
[1758132195021,0.06,237.46,237.37,0.42128322]
[1758132195401,0.06,237.9,237.72,20.0]
[1758132195602,0.06,237.9,237.46,38.23]
[1758132195603,19.02277,238.2,238.07,1.9786587]
[1758132195909,0.1,238.39,238.07,1.9786587]
[1758132195910,19.99999751,238.32,238.07,1.9786587]
[1758132196119,5.72051262,238.2,238.07,1.9786587]
[1758132196298,10.49198459,238.28,238.07,1.9786587]
[1758132196498,19.99999751,238.26,238.08,0.42002688]
[1758132196727,4.24055647,238.17,238.08,0.42002688]
[1758132196929,14.7372605,238.17,238.07,1.2586587]
[1758132197106,19.99999751,238.12,237.64,0.42080457]
[1758132197311,14.7372605,238.17,237.6,20.0]
[1758132197312,5.72051262,237.98,237.6,20.0]
[1758132197640,14.7372605,238.17,237.8,5.72051262]
[1758132197641,4.24055647,238.17,237.8,5.72051262]
[1758132197806,0.04187486,238.17,237.81,0.42050376]
[1758132198300,0.04187486,238.17,237.85,20.0]
[1758132198533,0.04187486,238.17,238.09,5.72051262]
[1758132198703,0.04187486,238.17,237.86,0.42041537]
[1758132199223,0.42,238.16,237.86,0.42041537]
[1758132199404,5.72051262,238.06,237.86,0.42041537]
[1758132199598,0.04187486,238.17,237.87,0.42039769]
[1758132199599,5.72051262,238.03,237.87,0.42039769]
[1758132199822,5.72051262,238.11,237.94,5.72051262]
[1758132200033,5.72051262,238.02,237.87,6.14091031]
[1758132200223,14.69600268,238.16,237.87,0.42039769]
[1758132200537,4.19885791,238.16,237.88,0.42038002]
[1758132200835,5.72051262,238.09,237.94,5.72051262]
[1758132201003,4.19885791,238.16,237.97,5.72051262]
[1758132201198,0.04187486,238.17,237.98,0.42020337]
[1758132201518,0.04187486,238.17,237.99,0.42018572]
[1758132201729,5.72051262,238.14,238.0,0.42016806]
[1758132201902,5.72051262,238.02,237.84,5.72051262]
[1758132202102,4.2000924,238.09,237.85,0.42043304]
[1758132202326,5.72051262,238.04,237.9,5.72051262]
[1758132202622,4.23969612,238.1,237.91,0.42032701]
[1758132202828,5.72051262,237.98,237.91,0.42032701]
[1758132202997,0.42,238.09,237.86,0.5]
[1758132203198,0.42,238.09,237.87,0.42039769]
[1758132203403,0.42,238.09,237.59,20.0]
[1758132203404,5.72051262,238.02,237.88,6.14089264]
[1758132203612,14.73948612,238.1,237.88,0.42038002]
[1758132203613,4.23969612,238.1,237.88,0.42038002]
[1758132203924,4.23969612,238.1,237.69,20.0]
[1758132203925,0.03962255,238.1,237.89,0.42036235]
[1758132204109,0.03962255,238.1,237.92,5.91241645]
[1758132204430,0.03962255,238.1,237.88,5.91241645]
[1758132204631,0.03962255,238.1,237.96,5.91241645]
[1758132204798,0.03962255,238.1,238.01,5.91241645]
[1758132204997,0.03962255,238.1,237.77,20.0]
[1758132204998,0.03962255,238.1,238.02,0.42013276]
[1758132205225,5.91241645,238.05,237.78,0.42055681]
[1758132205398,5.91241645,238.05,237.69,20.0]
[1758132205399,0.03962255,238.1,237.87,5.91241645]
[1758132205604,5.91241645,238.01,237.88,0.42038002]
[1758132205930,0.03962255,238.1,237.91,5.91241645]
[1758132206104,0.03962255,238.1,238.01,5.91241645]
[1758132206301,0.03962255,238.1,237.72,20.65166155]
[1758132206302,0.03962255,238.1,238.03,5.91241645]
[1758132206503,0.03962255,238.1,238.04,0.42009746]
[1758132206728,0.03962255,238.1,237.83,0.4204684]
[1758132206903,0.03962255,238.1,238.03,5.91241645]
[1758132207101,0.03962255,238.1,238.04,0.42009746]
[1758132207331,0.03962255,238.1,237.81,0.42050376]
[1758132207536,0.03962255,238.1,238.0,5.91241645]
[1758132207710,0.03962255,238.1,238.04,5.91241645]
[1758132208028,0.03962255,238.1,237.82,0.5]
[1758132208029,0.03962255,238.1,238.08,5.91241645]
[1758132208209,0.03962255,238.1,238.09,6.33242569]
[1758132208536,0.03962255,238.1,238.09,0.42000924]
[1758132208829,0.03962255,238.1,238.06,5.91241645]
[1758132209028,0.04637948,238.31,238.07,0.42004452]
[1758132209340,0.04637948,238.31,238.08,0.42002688]
[1758132209508,0.04637948,238.31,238.09,0.42000924]
[1758132209709,0.04637948,238.31,238.1,0.4199916]
[1758132209903,0.04637948,238.31,238.11,0.41997396]
[1758132210104,5.95879593,238.31,238.18,5.91241645]
[1758132210330,0.04637948,238.31,237.95,20.0]
[1758132210631,0.06,238.13,238.0,5.91241645]
[1758132210830,0.04637948,238.31,238.12,5.91241645]
[1758132211032,0.04637948,238.31,238.13,0.41993868]
[1758132211214,5.91241645,238.3,238.13,0.41993868]
[1758132211416,5.91241645,238.3,237.94,30.28]
[1758132211417,5.95654362,238.24,238.14,0.41992105]
[1758132211618,0.04412717,238.24,237.94,30.28]
[1758132211949,0.04412717,238.24,238.02,5.91241645]
[1758132212229,0.04412717,238.24,238.03,0.42011511]
[1758132213005,5.91241645,238.09,238.04,0.42009746]
[1758132213226,0.46412717,238.24,237.95,0.42025635]
[1758132213424,0.04412717,238.24,237.96,0.42023869]
[1758132213644,0.04412717,238.24,238.15,5.91241645]
[1758132213823,0.04412717,238.24,238.16,0.41988579]
[1758132214131,0.04412717,238.24,237.87,20.0]
[1758132214306,0.04412717,238.24,237.88,0.42038002]
[1758132214307,5.91241645,238.19,237.88,0.42038002]
[1758132214509,0.04412717,238.24,237.88,0.42038002]
[1758132214712,4.24162054,238.24,238.04,5.91241645]
[1758132214912,4.24162054,238.24,238.05,0.42007981]
[1758132215116,5.91241645,238.07,237.8,0.42052144]
[1758132215315,5.91241645,238.08,237.95,5.91241645]
[1758132215510,20.41999751,238.23,237.96,0.42023869]
[1758132215711,5.91241645,237.98,237.71,30.26]
[1758132215931,5.91241645,237.92,237.71,30.26]
[1758132216130,0.42,238.14,237.88,5.91241645]
[1758132216310,4.19868161,238.17,237.97,5.91241645]
[1758132216511,0.04412717,238.24,237.98,6.33261982]
[1758132216716,5.91241645,238.04,237.98,0.42020337]
[1758132216933,5.91241645,238.04,237.92,5.91241645]
[1758132216934,5.91241645,238.06,237.93,0.42029168]
[1758132217129,5.91241645,238.02,237.93,0.42029168]
[1758132217409,5.91241645,238.02,237.71,62.60259946]
[1758132217410,0.42,238.18,237.91,5.91241645]
[1758132217623,0.42,238.22,238.02,5.91241645]
[1758132217830,5.91241645,238.13,238.03,0.42011511]
[1758132218024,5.91241645,238.07,238.04,0.42009746]
[1758132218235,5.91241645,238.05,237.71,42.60259946]
[1758132218437,0.42,238.17,237.86,5.91241645]
[1758132218738,5.91241645,237.99,237.87,0.42039769]
[1758132218924,14.69600268,238.16,237.71,42.60259946]
[1758132218925,19.99999751,238.13,237.71,30.26]
[1758132219246,0.42,238.12,237.83,5.91241645]
[1758132219546,0.42,238.12,237.71,30.26]
[1758132219547,5.91241645,237.97,237.84,0.42045072]
[1758132219722,5.91241645,237.97,237.72,0.42066296]
[1758132219921,0.42,238.15,237.72,0.42066296]
[1758132220234,0.04412717,238.24,237.72,0.42066296]
[1758132220235,15.11230123,238.22,237.77,12.65]
[1758132220547,5.91241645,238.07,237.79,12.65]
[1758132220720,5.91241645,238.05,237.8,0.42052144]
[1758132221047,0.42,238.21,237.8,0.42052144]
[1758132221217,0.04412717,238.24,238.1,5.91241645]
[1758132221418,0.04412717,238.24,237.88,12.65]
[1758132221419,0.04412717,238.24,238.12,5.91241645]
[1758132221747,0.04412717,238.24,237.86,12.65]
[1758132221924,5.91241645,238.08,237.87,0.42039769]
[1758132222122,0.42,238.23,237.78,0.42055681]
[1758132222341,5.91241645,238.06,237.78,0.42055681]
[1758132222542,5.91241645,238.08,237.95,5.91241645]
[1758132222733,5.91241645,238.08,237.96,0.42023869]
[1758132223044,15.1116845,238.23,237.96,0.42023869]
[1758132223216,5.91241645,238.09,237.97,0.42022103]
[1758132223550,15.1116845,238.23,237.74,19.12617448]
[1758132223551,5.91241645,237.98,237.74,19.12617448]
[1758132223840,19.99999751,238.09,237.74,19.12617448]
[1758132224054,35.67980522,238.23,237.49,30.26]
[1758132224055,5.91241645,237.77,237.49,30.26]
[1758132224229,0.42,237.93,237.49,30.26]
[1758132224541,4.2018693,237.99,237.68,0.42073375]
[1758132224746,30.26,238.0,237.68,0.42073375]
[1758132224915,5.91241645,237.95,237.68,0.42073375]
[1758132225115,5.91241645,237.94,237.82,5.91241645]
[1758132225315,30.26,238.0,237.63,20.0]
[1758132225316,30.26,238.0,237.86,5.91241645]
[1758132225535,30.26,238.0,237.86,0.42041537]
[1758132225749,0.42,238.1,237.82,5.91241645]
[1758132225920,5.91241645,237.84,237.67,0.03]
[1758132226122,5.91241645,237.84,237.72,5.91241645]
[1758132226327,19.99999751,238.02,237.67,0.03]
[1758132226530,10.49903815,238.12,237.89,5.91241645]
[1758132226730,10.49903815,238.12,237.67,0.03]
[1758132226731,5.91241645,237.93,237.67,0.03]
[1758132226932,19.99999751,238.1,237.67,0.03]
[1758132227135,0.42,238.09,237.7,20.0]
[1758132227422,4.61832906,238.19,237.74,20.0]
[1758132227643,5.91241645,238.15,237.8,20.0]
[1758132227824,5.91241645,238.11,237.81,0.42050376]
[1758132228172,5.91241645,238.11,237.99,5.91241645]
[1758132228354,5.91241645,238.11,237.81,0.42050376]
[1758132228355,0.42,238.23,238.0,6.33258451]
[1758132228654,5.91241645,238.13,238.01,5.91241645]
[1758132228855,5.91241645,238.11,238.02,0.42013276]
[1758132229036,5.91241645,238.1,238.03,0.42011511]
[1758132229360,5.91241645,238.04,237.75,30.26]
[1758132229661,5.91241645,237.95,237.75,30.26]
[1758132229950,56.67037629,238.22,237.64,0.03]
[1758132229951,19.99999751,238.14,237.64,0.03]
[1758132230154,5.91241645,237.93,237.64,0.03]
[1758132230362,5.91241645,237.89,237.64,0.03]
[1758132230656,5.91241645,238.0,237.64,0.03]
[1758132230858,0.42,237.99,237.73,5.91241645]
[1758132231029,0.42,238.03,237.78,5.91241645]
[1758132231234,5.91241645,237.99,237.79,0.42053913]
[1758132231434,5.91241645,237.99,237.87,5.91241645]
[1758132231623,30.26,238.08,237.91,5.91241645]
[1758132231840,5.91241645,238.04,237.92,5.91241645]
[1758132232048,5.91241645,238.07,237.88,0.42038002]
[1758132232257,5.91241645,238.06,237.95,5.91241645]
[1758132232557,0.42,238.18,237.88,0.42038002]
[1758132232732,4.61762414,238.23,237.89,0.42036235]
[1758132233049,0.42,238.23,238.04,5.91241645]
[1758132233249,0.10412717,238.24,238.1,5.91241645]
[1758132233562,6.01654362,238.24,238.11,0.41997396]
[1758132233761,0.10412717,238.24,238.12,0.41995632]
[1758132233959,5.91241645,238.23,238.12,0.41995632]
[1758132234164,5.91241645,238.22,238.08,5.91241645]
[1758132234332,4.30164763,238.24,237.86,20.0]
[1758132234532,0.42,238.23,237.87,0.42039769]
[1758132234749,4.61769691,238.23,238.03,5.91241645]
[1758132234933,5.91241645,238.1,237.98,5.91241645]
[1758132235141,5.91241645,238.18,238.06,5.91241645]
[1758132235455,0.10412717,238.24,238.1,5.91241645]
[1758132235675,5.91241645,238.19,238.07,0.42004452]
[1758132235842,5.91241645,238.18,237.91,0.42032701]
[1758132236034,0.10412717,238.24,238.04,5.91241645]
[1758132236367,5.91241645,238.06,237.8,30.26]
[1758132236537,10.49538203,238.2,237.89,5.91241645]
[1758132236737,5.91241645,238.02,237.89,5.91241645]
[1758132236959,5.91241645,238.0,237.68,20.45073375]
[1758132237131,5.91241645,238.0,237.87,5.91241645]
[1758132237446,0.42,238.19,237.92,5.91241645]
[1758132237650,0.42,238.19,237.68,0.03]
[1758132237957,0.42,238.19,237.83,5.91241645]
[1758132237958,5.91241645,237.95,237.83,5.91241645]
[1758132238141,0.42,238.12,237.68,0.03]
[1758132238332,5.91241645,237.94,237.82,5.91241645]
[1758132238532,5.91241645,237.97,237.68,0.03]
[1758132238838,0.42,238.04,237.69,0.42071605]
[1758132239041,5.91241645,237.96,237.69,0.42071605]
[1758132239252,5.91241645,237.94,237.69,0.42071605]
[1758132239455,0.42,238.04,237.89,5.91241645]
[1758132239656,0.42,238.04,237.69,0.42071605]
[1758132239657,5.91241645,237.97,237.69,0.42071605]
[1758132239848,5.91241645,237.98,237.69,0.42071605]
[1758132240056,0.42,238.15,237.69,20.42071605]
[1758132240252,5.91241645,238.09,237.96,5.91241645]
[1758132240444,5.91241645,238.01,237.97,0.42022103]
[1758132240651,5.91241645,238.01,237.72,20.0]
[1758132240652,4.61873979,238.17,237.86,5.91241645]
[1758132240853,15.11544382,238.17,237.9,5.91241645]
[1758132241156,15.11544382,238.17,237.68,0.03]
[1758132241157,5.91241645,237.95,237.68,0.03]
[1758132241347,5.91241645,237.91,237.68,0.03]
[1758132241666,5.91241645,237.91,237.69,0.42071605]
[1758132241870,5.91241645,237.77,237.69,0.42071605]
[1758132242172,0.42,237.99,237.68,0.45073375]
[1758132242344,0.42,237.99,237.68,0.03]
[1758132242542,5.91241645,237.79,237.68,0.03]
[1758132242744,5.91241645,237.77,237.69,0.42071605]
[1758132242948,0.42,237.97,237.68,0.03]
[1758132243154,0.42,237.97,237.75,5.91241645]
[1758132243446,5.91241645,237.91,237.76,0.42059219]
[1758132243657,5.91241645,237.83,237.68,0.03]
[1758132243864,5.91241645,237.89,237.77,5.91241645]
[1758132244051,5.91241645,237.86,237.68,0.03]
[1758132244256,21.0676718,238.14,237.68,0.03]
[1758132244257,4.2007077,238.06,237.84,5.91241645]
[1758132244453,5.91241645,238.0,237.88,5.91241645]
[1758132244657,5.91241645,238.04,237.92,5.91241645]
[1758132244869,0.42,238.03,237.86,5.91241645]
[1758132245060,0.42,238.12,237.68,0.03]
[1758132245263,0.42,238.12,237.91,5.91241645]
[1758132245452,5.91241645,238.07,237.77,20.0]
[1758132245777,5.91241645,238.03,237.78,0.42055681]
[1758132245943,5.91241645,238.03,237.91,5.91241645]
[1758132246138,0.42,238.2,237.91,5.91241645]
[1758132246367,0.42,238.21,237.78,0.42055681]
[1758132246549,5.91241645,238.02,237.91,5.91241645]
[1758132247249,5.91241645,238.03,237.91,5.91241645]
[1758132247448,5.91241645,238.05,237.93,5.91241645]
[1758132247674,5.91241645,238.06,237.95,5.91241645]
[1758132247858,0.42,238.19,237.96,0.42023869]
[1758132248059,4.61778044,238.23,237.79,20.0]
[1758132248268,15.1118408,238.23,238.0,5.91241645]
[1758132248570,15.1118408,238.23,237.81,20.0]
[1758132248571,0.42,238.23,238.01,0.42015041]
[1758132248750,0.42,238.23,237.99,5.91241645]
[1758132248952,0.42,238.23,237.87,30.26]
[1758132248953,5.91241645,238.13,238.02,5.91241645]
[1758132249154,4.19762414,238.23,237.99,5.91241645]
[1758132249359,5.91241645,238.08,237.97,5.91241645]
[1758132249548,0.42,238.22,237.97,5.91241645]
[1758132249765,5.91241645,238.09,237.97,5.91241645]
[1758132249958,5.91241645,238.03,237.72,20.0]
[1758132250167,0.42,238.22,237.91,5.91241645]
[1758132250387,5.91241645,237.95,237.68,0.03]
[1758132250557,5.91241645,237.98,237.86,5.91241645]
[1758132250873,14.69600268,238.16,237.86,5.91241645]
[1758132250874,0.42,238.15,237.86,5.91241645]
[1758132251169,0.42,238.15,237.68,0.03]
[1758132251371,5.91241645,237.94,237.68,0.03]
[1758132251680,5.91241645,237.98,237.69,0.42071605]
[1758132251874,5.91241645,237.98,237.86,5.91241645]
[1758132252183,5.91241645,237.99,237.7,12.65]
[1758132252369,5.91241645,238.03,237.71,33.07068066]
[1758132252562,0.42,238.15,237.69,20.0]
[1758132252563,5.91241645,237.97,237.69,20.0]
[1758132252774,5.91241645,237.95,237.83,5.91241645]
[1758132252963,0.42,238.18,237.68,0.03]
[1758132252964,5.91241645,237.93,237.68,0.03]
[1758132253158,5.91241645,237.93,237.82,5.91241645]
[1758132253458,5.91241645,237.91,237.8,5.91241645]
[1758132253658,19.99999751,238.17,237.68,0.03]
[1758132253659,5.91241645,237.87,237.68,0.03]
[1758132253858,35.6842989,238.2,237.68,0.03]
[1758132253859,19.99999751,238.1,237.73,5.91241645]
[1758132254078,5.91241645,237.83,237.68,0.03]
[1758132254389,5.91241645,237.7,237.68,0.03]
[1758132254591,35.72929801,237.9,237.67,0.03]
[1758132254883,0.42,237.89,237.67,0.03]
[1758132255184,5.91241645,237.76,237.67,0.03]
[1758132255494,0.42,237.99,237.75,5.91241645]
[1758132255661,0.42,237.99,237.74,5.91241645]
[1758132255857,0.42,237.99,237.78,5.91241645]
[1758132256162,5.91241645,237.79,237.67,0.03]
[1758132256358,0.42,237.99,237.69,5.91241645]
[1758132256562,0.42,237.99,237.67,0.03]
[1758132256563,5.91241645,237.81,237.71,5.91241645]
[1758132256777,5.91241645,238.0,237.67,0.03]
[1758132256778,25.21432172,237.96,237.67,0.03]
[1758132257086,5.91241645,237.77,237.67,0.03]
[1758132257387,5.91241645,237.73,237.67,0.03]
[1758132257564,10.92647092,237.95,237.67,0.03]
[1758132257762,0.42,237.95,237.68,0.42073375]
[1758132257968,5.91241645,237.86,237.68,0.42073375]
[1758132258281,0.42,237.99,237.68,0.42073375]
[1758132258488,0.42,238.18,237.68,0.42073375]
[1758132258684,4.19868161,238.17,237.68,0.42073375]
[1758132258989,0.42,238.16,237.78,20.71243852]
[1758132259192,0.42,238.2,237.79,33.07053913]
[1758132259395,5.91241645,238.17,237.86,32.65]
[1758132259558,5.91241645,238.17,237.79,36.54634776]
[1758132259559,5.91241645,238.11,237.87,0.42039769]
[1758132259762,4.72165365,238.24,237.81,12.65]
[1758132259991,0.52412717,238.24,237.85,32.65]
[1758132260163,4.72166614,238.24,238.05,5.91241645]
[1758132260372,5.91241645,238.09,237.79,50.28]
[1758132260688,4.72166614,238.24,237.98,5.91241645]
[1758132260887,15.21528601,238.24,237.79,30.28]
[1758132261075,50.0,238.0,237.79,30.28]
[1758132261272,55.91241645,238.0,237.79,30.28]
[1758132261582,50.0,238.0,237.92,5.91241645]
[1758132261764,50.0,238.0,237.79,30.28]
[1758132261765,50.0,238.0,237.94,5.91241645]
[1758132262085,50.0,238.0,237.79,30.28]
[1758132262086,23.84,238.0,237.98,5.91241645]
[1758132262259,23.84,238.0,237.99,5.91241645]
[1758132262663,23.84,238.0,237.85,0.42043304]
[1758132262886,23.84,238.0,237.79,30.28]
[1758132263212,23.84,238.0,237.91,5.91241645]
[1758132263360,5.91241645,237.95,237.67,0.03]
[1758132263562,23.84,238.0,237.85,5.91241645]
[1758132263767,23.84,238.0,237.67,20.03]
[1758132263968,23.84,238.0,237.67,0.03]
[1758132264200,23.84,238.0,237.88,5.91241645]
[1758132264492,23.84,238.0,237.92,5.91241645]
[1758132264681,23.84,238.0,237.89,0.42036235]
[1758132264876,5.91241645,237.98,237.68,20.03]
[1758132265079,23.9,238.0,237.95,5.91241645]
[1758132265274,23.9,238.0,237.71,21.51196803]
[1758132265275,23.9,238.0,237.9,5.91241645]
[1758132265476,5.91241645,237.97,237.85,5.91241645]